[Event "Live Chess"]
[Site "Chess.com"]
[Date "2024.06.02"]
[Round "-"]
[White "grillage"]
[Black "MagnersCarlsberg2870"]
[Result "1-0"]
[WhiteElo "1868"]
[BlackElo "1801"]
[TimeControl "300"]
[EndTime "19:10:44 PDT"]
[Termination "grillage won by resignation"]

1. d4 {[%clk 0:04:57.9]} 1... Nf6 {[%clk 0:04:58.3]} 2. Nf3 {[%clk 0:04:57.2]}
2... b6 {[%clk 0:04:55]} 3. g3 {[%clk 0:04:55.3]} 3... Bb7 {[%clk 0:04:53.6]} 4.
Bg2 {[%clk 0:04:54.8]} 4... d5 {[%clk 0:04:52]} 5. O-O {[%clk 0:04:53.9]} 5...
Nbd7 {[%clk 0:04:48.1]} 6. b3 {[%clk 0:04:49.1]} 6... e6 {[%clk 0:04:46.8]} 7.
Bb2 {[%clk 0:04:48.4]} 7... c5 {[%clk 0:04:45.6]} 8. c3 {[%clk 0:04:39.9]} 8...
Bd6 {[%clk 0:04:40]} 9. Nbd2 {[%clk 0:04:37.4]} 9... h5 {[%clk 0:04:38.5]} 10.
h4 {[%clk 0:04:35.4]} 10... Ng4 {[%clk 0:04:36.7]} 11. Qc2 {[%clk 0:04:12.4]}
11... Qc7 {[%clk 0:04:00.7]} 12. e4 {[%clk 0:04:04.7]} 12... Bxg3 {[%clk
0:03:55.4]} 13. fxg3 {[%clk 0:04:00.5]} 13... Qxg3 {[%clk 0:03:53.1]} 14. Rae1
{[%clk 0:03:39.7]} 14... dxe4 {[%clk 0:03:49.6]} 15. Nxe4 {[%clk 0:03:37.1]}
15... Bxe4 {[%clk 0:03:46.7]} 16. Qxe4 {[%clk 0:03:35.1]} 16... O-O {[%clk
0:03:31.9]} 17. Bc1 {[%clk 0:03:09.9]} 17... Ndf6 {[%clk 0:03:28.8]} 18. Qf4
{[%clk 0:03:07.9]} 18... Qxf4 {[%clk 0:03:16.6]} 19. Bxf4 {[%clk 0:03:06.1]}
19... Nd5 {[%clk 0:03:10.9]} 20. Bd2 {[%clk 0:02:48.9]} 20... cxd4 {[%clk
0:03:09]} 21. Nxd4 {[%clk 0:02:44.6]} 21... Rac8 {[%clk 0:03:00.7]} 22. c4
{[%clk 0:02:41.6]} 22... Ndf6 {[%clk 0:02:49.2]} 23. Nb5 {[%clk 0:02:38.3]}
23... Rfd8 {[%clk 0:02:45.8]} 24. Bg5 {[%clk 0:02:36.2]} 24... Rd2 {[%clk
0:02:39.7]} 25. Bxd2 {[%clk 0:02:26.8]} 1-0

[Event "Live Chess"]
[Site "Chess.com"]
[Date "2024.06.02"]
[Round "-"]
[White "gobbles19"]
[Black "juniortay"]
[Result "0-1"]
[WhiteElo "2263"]
[BlackElo "2428"]
[TimeControl "300"]
[EndTime "19:11:35 PDT"]
[Termination "juniortay won by resignation"]

1. Nf3 {[%clk 0:04:53.6]} 1... Nf6 {[%clk 0:04:58.7]} 2. c4 {[%clk 0:04:51.2]}
2... g6 {[%clk 0:04:58.6]} 3. d4 {[%clk 0:04:50]} 3... Bg7 {[%clk 0:04:56.6]} 4.
Nc3 {[%clk 0:04:49.5]} 4... d6 {[%clk 0:04:56.3]} 5. e4 {[%clk 0:04:49]} 5...
O-O {[%clk 0:04:56.2]} 6. h3 {[%clk 0:04:47.9]} 6... c5 {[%clk 0:04:55.4]} 7. d5
{[%clk 0:04:45.3]} 7... b5 {[%clk 0:04:54.8]} 8. cxb5 {[%clk 0:04:35.6]} 8... a6
{[%clk 0:04:54.3]} 9. Bd3 {[%clk 0:04:29]} 9... Qa5 {[%clk 0:04:48.4]} 10. Bd2
{[%clk 0:04:23.7]} 10... axb5 {[%clk 0:04:45.8]} 11. Nxb5 {[%clk 0:04:18.7]}
11... Qb6 {[%clk 0:04:45]} 12. a4 {[%clk 0:04:10.3]} 12... Ne8 {[%clk
0:04:39.6]} 13. Qc2 {[%clk 0:04:00.6]} 13... Nc7 {[%clk 0:04:37.9]} 14. O-O
{[%clk 0:03:57.8]} 14... Ba6 {[%clk 0:04:36.6]} 15. Nxc7 {[%clk 0:03:51.4]}
15... Qxc7 {[%clk 0:04:35.1]} 16. Bc3 {[%clk 0:03:45.1]} 16... Nd7 {[%clk
0:04:28]} 17. Bxg7 {[%clk 0:03:39.4]} 17... Kxg7 {[%clk 0:04:27.9]} 18. Rfc1
{[%clk 0:03:36.7]} 18... Rfb8 {[%clk 0:04:25.6]} 19. Qc3+ {[%clk 0:03:32.5]}
19... Kg8 {[%clk 0:04:23.9]} 20. Bxa6 {[%clk 0:03:28]} 20... Rxa6 {[%clk
0:04:20.6]} 21. b4 {[%clk 0:03:26.8]} 21... Qa7 {[%clk 0:04:00.7]} 22. bxc5
{[%clk 0:03:15.4]} 22... Nxc5 {[%clk 0:03:59.3]} 23. Qe3 {[%clk 0:03:07.3]}
23... f6 {[%clk 0:03:47]} 24. Nd4 {[%clk 0:03:01.2]} 24... Nb3 {[%clk
0:03:40.2]} 25. Nc6 {[%clk 0:02:55.2]} 25... Qxe3 {[%clk 0:03:35.1]} 26. fxe3
{[%clk 0:02:52.3]} 26... Nxa1 {[%clk 0:03:24.8]} 27. Nxb8 {[%clk 0:02:51]} 27...
Rb6 {[%clk 0:03:24]} 28. Rc8+ {[%clk 0:02:45.2]} 28... Kf7 {[%clk 0:03:20.5]}
29. Nc6 {[%clk 0:02:43.3]} 29... Rb1+ {[%clk 0:03:04.9]} 30. Kf2 {[%clk
0:02:41.1]} 30... Rb2+ {[%clk 0:02:56.7]} 31. Kf3 {[%clk 0:02:31.9]} 31... Nb3
{[%clk 0:02:55.6]} 32. Nd8+ {[%clk 0:02:28.3]} 32... Kg7 {[%clk 0:02:54.2]} 33.
Ne6+ {[%clk 0:02:27.4]} 33... Kh6 {[%clk 0:02:53.3]} 34. Rc7 {[%clk 0:02:01.9]}
34... Nd2+ {[%clk 0:02:50.3]} 35. Kf4 {[%clk 0:01:51.2]} 35... g5+ {[%clk
0:02:47.9]} 36. Kf5 {[%clk 0:01:42.3]} 36... Nf1 {[%clk 0:02:44.4]} 37. Rxe7
{[%clk 0:01:37.7]} 37... Nxe3+ {[%clk 0:02:42.5]} 38. Kxf6 {[%clk 0:01:34.4]}
38... Rf2+ {[%clk 0:02:39.2]} 0-1

[Event "Live Chess"]
[Site "Chess.com"]
[Date "2024.06.02"]
[Round "-"]
[White "CheckThis4"]
[Black "booktrunk"]
[Result "1-0"]
[WhiteElo "2687"]
[BlackElo "1518"]
[TimeControl "300"]
[EndTime "19:12:11 PDT"]
[Termination "CheckThis4 won by resignation"]

1. d4 {[%clk 0:04:57.1]} 1... b6 {[%clk 0:04:56.8]} 2. Nc3 {[%clk 0:04:57]} 2...
Bb7 {[%clk 0:04:54.8]} 3. e4 {[%clk 0:04:56.6]} 3... e6 {[%clk 0:04:49.7]} 4. h4
{[%clk 0:04:52]} 4... h6 {[%clk 0:04:44.5]} 5. Bd3 {[%clk 0:04:48.3]} 5... Bb4
{[%clk 0:04:35.8]} 6. Ne2 {[%clk 0:04:46.6]} 6... Bxc3+ {[%clk 0:04:33.8]} 7.
Nxc3 {[%clk 0:04:45]} 7... d6 {[%clk 0:04:22.1]} 8. Qg4 {[%clk 0:04:41.8]} 8...
g6 {[%clk 0:04:15.4]} 9. e5 {[%clk 0:04:35.8]} 9... dxe5 {[%clk 0:04:12.2]} 10.
dxe5 {[%clk 0:04:35.7]} 10... h5 {[%clk 0:04:09.2]} 11. Qg3 {[%clk 0:04:33.7]}
11... Nd7 {[%clk 0:04:05.7]} 12. Bg5 {[%clk 0:04:31.8]} 12... Ne7 {[%clk
0:04:00.9]} 13. O-O-O {[%clk 0:04:30.4]} 13... Nf8 {[%clk 0:03:58.9]} 14. Bb5+
{[%clk 0:04:27.6]} 1-0

[Event "Live Chess"]
[Site "Chess.com"]
[Date "2024.06.02"]
[Round "-"]
[White "RafaelRony"]
[Black "KeithArkell"]
[Result "0-1"]
[WhiteElo "1073"]
[BlackElo "2438"]
[TimeControl "300"]
[EndTime "19:12:18 PDT"]
[Termination "KeithArkell won by resignation"]

1. d4 {[%clk 0:04:57]} 1... e6 {[%clk 0:04:58.1]} 2. c4 {[%clk 0:04:54.3]} 2...
Bb4+ {[%clk 0:04:55.8]} 3. Bd2 {[%clk 0:04:52.4]} 3... Bxd2+ {[%clk 0:04:54.7]}
4. Nxd2 {[%clk 0:04:51.5]} 4... Nf6 {[%clk 0:04:54.2]} 5. Ngf3 {[%clk 0:04:50]}
5... d6 {[%clk 0:04:52]} 6. g3 {[%clk 0:04:49.3]} 6... Qe7 {[%clk 0:04:51.3]} 7.
Bg2 {[%clk 0:04:46.7]} 7... e5 {[%clk 0:04:50.9]} 8. dxe5 {[%clk 0:04:42.4]}
8... dxe5 {[%clk 0:04:39.7]} 9. e4 {[%clk 0:04:32.4]} 9... Bg4 {[%clk
0:04:30.5]} 10. O-O {[%clk 0:04:29.3]} 10... Nc6 {[%clk 0:04:29.1]} 11. Qc2
{[%clk 0:04:24.3]} 11... Bxf3 {[%clk 0:04:25.4]} 12. Bxf3 {[%clk 0:04:17]} 12...
O-O {[%clk 0:04:24.4]} 13. Rac1 {[%clk 0:04:14.4]} 13... Nd4 {[%clk 0:04:22.9]}
14. Qd1 {[%clk 0:04:10.9]} 14... c5 {[%clk 0:04:21.8]} 15. Bg2 {[%clk
0:04:09.3]} 15... Rfd8 {[%clk 0:04:20]} 16. Nf3 {[%clk 0:04:08.2]} 16... Nxe4
{[%clk 0:04:15.8]} 17. Re1 {[%clk 0:04:02.3]} 17... Ng5 {[%clk 0:03:56]} 18.
Rxe5 {[%clk 0:03:55.5]} 18... Ngxf3+ {[%clk 0:03:53.9]} 19. Bxf3 {[%clk
0:03:51.4]} 0-1

[Event "Live Chess"]
[Site "Chess.com"]
[Date "2024.06.02"]
[Round "-"]
[White "Mikhail_Golubev"]
[Black "IgorSchukin"]
[Result "1-0"]
[WhiteElo "2575"]
[BlackElo "1759"]
[TimeControl "300"]
[EndTime "19:13:18 PDT"]
[Termination "Mikhail_Golubev won by resignation"]

1. e4 {[%clk 0:04:54.6]} 1... c5 {[%clk 0:04:58.5]} 2. Nf3 {[%clk 0:04:53.5]}
2... e6 {[%clk 0:04:57.5]} 3. d4 {[%clk 0:04:52.5]} 3... cxd4 {[%clk 0:04:56.2]}
4. Nxd4 {[%clk 0:04:52.4]} 4... Nc6 {[%clk 0:04:55.3]} 5. Nc3 {[%clk 0:04:51]}
5... Qc7 {[%clk 0:04:54]} 6. Be3 {[%clk 0:04:49.6]} 6... a6 {[%clk 0:04:52.8]}
7. a3 {[%clk 0:04:48.9]} 7... Nf6 {[%clk 0:04:51.8]} 8. f4 {[%clk 0:04:47.9]}
8... d6 {[%clk 0:04:48.6]} 9. Qf3 {[%clk 0:04:46]} 9... Be7 {[%clk 0:04:47]} 10.
O-O-O {[%clk 0:04:42.7]} 10... Nxd4 {[%clk 0:04:43.5]} 11. Bxd4 {[%clk
0:04:38.8]} 11... e5 {[%clk 0:04:41.4]} 12. fxe5 {[%clk 0:04:37.9]} 12... dxe5
{[%clk 0:04:39.1]} 13. Qg3 {[%clk 0:04:33.5]} 13... Bg4 {[%clk 0:04:34.4]} 14.
Bxe5 {[%clk 0:04:29.8]} 14... Qc6 {[%clk 0:04:21.5]} 15. Bxf6 {[%clk 0:04:19.1]}
15... Bxd1 {[%clk 0:04:18.6]} 16. Bxe7 {[%clk 0:04:09.7]} 16... Bh5 {[%clk
0:03:48.7]} 17. Qxg7 {[%clk 0:03:57.5]} 17... Kd7 {[%clk 0:02:52]} 18. Bh4
{[%clk 0:03:27.5]} 18... Rhg8 {[%clk 0:02:31.3]} 19. Qd4+ {[%clk 0:03:14.8]}
19... Qd6 {[%clk 0:02:24.3]} 20. Nd5 {[%clk 0:03:06.2]} 20... Rae8 {[%clk
0:02:03.8]} 21. Nf6+ {[%clk 0:02:59.5]} 21... Kc6 {[%clk 0:01:58]} 22. Qxd6+
{[%clk 0:02:57.6]} 22... Kxd6 {[%clk 0:01:56]} 23. Nxe8+ {[%clk 0:02:56.4]}
23... Rxe8 {[%clk 0:01:53.6]} 24. Bd3 {[%clk 0:02:55.2]} 24... Rg8 {[%clk
0:01:46.4]} 25. g3 {[%clk 0:02:45.2]} 25... Re8 {[%clk 0:01:40.3]} 26. Rf1
{[%clk 0:02:42.4]} 26... Bg6 {[%clk 0:01:35.7]} 27. Rf6+ {[%clk 0:02:39.2]}
27... Kc5 {[%clk 0:01:27.4]} 28. c3 {[%clk 0:02:05.1]} 28... Bxe4 {[%clk
0:01:10.9]} 29. Bxe4 {[%clk 0:01:53.2]} 29... Rxe4 {[%clk 0:01:09.4]} 30. Rxf7
{[%clk 0:01:52.4]} 30... b5 {[%clk 0:01:06.4]} 31. Kd2 {[%clk 0:01:43.1]} 31...
Kc4 {[%clk 0:01:00.9]} 32. Rf4 {[%clk 0:01:41.2]} 1-0

[Event "Live Chess"]
[Site "Chess.com"]
[Date "2024.06.02"]
[Round "-"]
[White "gobbles19"]
[Black "MagnersCarlsberg2870"]
[Result "0-1"]
[WhiteElo "2248"]
[BlackElo "1816"]
[TimeControl "300"]
[EndTime "19:15:10 PDT"]
[Termination "MagnersCarlsberg2870 won by resignation"]

1. e4 {[%clk 0:04:56.2]} 1... d6 {[%clk 0:04:57.6]} 2. d4 {[%clk 0:04:49.5]}
2... Nf6 {[%clk 0:04:56.5]} 3. Nc3 {[%clk 0:04:46.3]} 3... Nbd7 {[%clk
0:04:54.8]} 4. Be2 {[%clk 0:04:45.3]} 4... e5 {[%clk 0:04:53.8]} 5. d5 {[%clk
0:04:43.7]} 5... h6 {[%clk 0:04:52.1]} 6. Nf3 {[%clk 0:04:41.5]} 6... Be7 {[%clk
0:04:51.2]} 7. O-O {[%clk 0:04:39.7]} 7... g5 {[%clk 0:04:48.6]} 8. Ne1 {[%clk
0:04:31.3]} 8... Nf8 {[%clk 0:04:47]} 9. Be3 {[%clk 0:04:30.3]} 9... Ng6 {[%clk
0:04:45.9]} 10. g3 {[%clk 0:04:28.2]} 10... Bh3 {[%clk 0:04:42.2]} 11. Ng2
{[%clk 0:04:26.2]} 11... Rg8 {[%clk 0:04:36.9]} 12. Bb5+ {[%clk 0:04:17]} 12...
Kf8 {[%clk 0:04:35]} 13. Kh1 {[%clk 0:04:06.8]} 13... Bxg2+ {[%clk 0:04:31.5]}
14. Kxg2 {[%clk 0:04:05.7]} 14... Nf4+ {[%clk 0:04:30.6]} 15. Kh1 {[%clk
0:04:03.4]} 15... Qc8 {[%clk 0:04:26.2]} 16. gxf4 {[%clk 0:03:45.3]} 16... gxf4
{[%clk 0:04:24.4]} 17. Bd2 {[%clk 0:03:44.1]} 17... Qh3 {[%clk 0:04:23.1]} 18.
Rg1 {[%clk 0:03:42.9]} 18... f3 {[%clk 0:04:18.5]} 19. Qf1 {[%clk 0:03:34]}
19... Ng4 {[%clk 0:04:04.6]} 20. Rxg4 {[%clk 0:03:27.6]} 20... Qxf1+ {[%clk
0:04:02.4]} 21. Rxf1 {[%clk 0:03:27]} 21... Rxg4 {[%clk 0:04:01.3]} 22. Bxh6+
{[%clk 0:03:24.2]} 22... Kg8 {[%clk 0:03:58.3]} 23. h3 {[%clk 0:03:14.1]} 23...
Rh4 {[%clk 0:03:53.4]} 24. Be3 {[%clk 0:03:06.5]} 24... Rxh3+ {[%clk 0:03:49.1]}
25. Kg1 {[%clk 0:03:05.7]} 25... Kh7 {[%clk 0:03:46.2]} 0-1

[Event "Live Chess"]
[Site "Chess.com"]
[Date "2024.06.02"]
[Round "-"]
[White "grillage"]
[Black "Cruiseylee78"]
[Result "0-1"]
[WhiteElo "1856"]
[BlackElo "1689"]
[TimeControl "300"]
[EndTime "19:17:52 PDT"]
[Termination "Cruiseylee78 won by checkmate"]

1. d4 {[%clk 0:04:57.4]} 1... f5 {[%clk 0:04:55.9]} 2. Bg5 {[%clk 0:04:51.1]}
2... h6 {[%clk 0:04:33.6]} 3. Bh4 {[%clk 0:04:48.8]} 3... g5 {[%clk 0:04:26.2]}
4. Bg3 {[%clk 0:04:34.2]} 4... f4 {[%clk 0:04:15.1]} 5. e3 {[%clk 0:04:32.7]}
5... h5 {[%clk 0:04:09.5]} 6. Bd3 {[%clk 0:04:31]} 6... e6 {[%clk 0:03:47.6]} 7.
Bg6+ {[%clk 0:04:22.1]} 7... Ke7 {[%clk 0:03:41]} 8. exf4 {[%clk 0:04:19.5]}
8... h4 {[%clk 0:03:35.6]} 9. Qg4 {[%clk 0:03:51.6]} 9... hxg3 {[%clk
0:03:28.3]} 10. Qxg5+ {[%clk 0:03:48.5]} 10... Nf6 {[%clk 0:03:24]} 11. fxg3
{[%clk 0:03:42.2]} 11... Bh6 {[%clk 0:03:19.4]} 12. Qc5+ {[%clk 0:03:06.6]}
12... d6 {[%clk 0:03:07.1]} 13. Qc4 {[%clk 0:02:59.3]} 13... Qg8 {[%clk
0:02:58]} 14. Qxc7+ {[%clk 0:02:50.5]} 14... Nbd7 {[%clk 0:02:52.4]} 15. f5
{[%clk 0:02:41.4]} 15... exf5 {[%clk 0:02:45.1]} 16. Bxf5 {[%clk 0:02:39.6]}
16... Qg5 {[%clk 0:02:38.8]} 17. Bd3 {[%clk 0:02:02.6]} 17... Qc1+ {[%clk
0:02:22.4]} 18. Kf2 {[%clk 0:01:54.7]} 18... Ng4+ {[%clk 0:02:13.9]} 19. Kf3
{[%clk 0:01:53.9]} 19... Rf8+ {[%clk 0:01:46.6]} 20. Kxg4 {[%clk 0:01:52.8]}
20... Qg5+ {[%clk 0:01:41.2]} 21. Kh3 {[%clk 0:01:51.4]} 21... Qh5# {[%clk
0:01:35.8]} 0-1

[Event "Live Chess"]
[Site "Chess.com"]
[Date "2024.06.02"]
[Round "-"]
[White "booktrunk"]
[Black "gobbles19"]
[Result "0-1"]
[WhiteElo "1518"]
[BlackElo "2248"]
[TimeControl "300"]
[EndTime "19:17:53 PDT"]
[Termination "gobbles19 won by resignation"]

1. d4 {[%clk 0:04:53.4]} 1... Nf6 {[%clk 0:04:58.9]} 2. Nc3 {[%clk 0:04:52.5]}
2... d6 {[%clk 0:04:57.6]} 3. e4 {[%clk 0:04:47.7]} 3... g6 {[%clk 0:04:56.9]}
4. Nf3 {[%clk 0:04:46.1]} 4... Bg7 {[%clk 0:04:56.4]} 5. Bd3 {[%clk 0:04:43.4]}
5... Na6 {[%clk 0:04:54.5]} 6. O-O {[%clk 0:04:41.4]} 6... O-O {[%clk
0:04:52.1]} 7. Bxa6 {[%clk 0:04:39.9]} 7... bxa6 {[%clk 0:04:50.7]} 8. a3 {[%clk
0:04:32.7]} 8... Rb8 {[%clk 0:04:43.5]} 9. b3 {[%clk 0:04:07.2]} 9... Bb7 {[%clk
0:04:33]} 10. e5 {[%clk 0:03:53.4]} 10... dxe5 {[%clk 0:04:29.9]} 11. dxe5
{[%clk 0:03:52.5]} 11... Ng4 {[%clk 0:04:28.2]} 12. Qxd8 {[%clk 0:03:50]} 12...
Rfxd8 {[%clk 0:04:28.1]} 13. Bf4 {[%clk 0:03:29.3]} 13... Bxf3 {[%clk
0:04:24.4]} 14. gxf3 {[%clk 0:03:27.4]} 14... Nxe5 {[%clk 0:04:23.6]} 15. Rfd1
{[%clk 0:03:10]} 15... Nxf3+ {[%clk 0:04:21.8]} 0-1

[Event "Live Chess"]
[Site "Chess.com"]
[Date "2024.06.02"]
[Round "-"]
[White "IgorSchukin"]
[Black "asingardenof"]
[Result "1-0"]
[WhiteElo "1759"]
[BlackElo "621"]
[TimeControl "300"]
[EndTime "19:18:06 PDT"]
[Termination "IgorSchukin won by resignation"]

1. e4 {[%clk 0:04:58.4]} 1... c6 {[%clk 0:04:54]} 2. d4 {[%clk 0:04:56.9]} 2...
d5 {[%clk 0:04:52.7]} 3. Nc3 {[%clk 0:04:56.5]} 3... Nf6 {[%clk 0:04:50.1]} 4.
e5 {[%clk 0:04:54.9]} 4... Ne4 {[%clk 0:04:43.4]} 5. Nxe4 {[%clk 0:04:53]} 5...
dxe4 {[%clk 0:04:41.9]} 6. Bc4 {[%clk 0:04:51]} 6... e6 {[%clk 0:04:40.7]} 7.
Ne2 {[%clk 0:04:46.9]} 7... Be7 {[%clk 0:04:36.5]} 8. O-O {[%clk 0:04:45.5]}
8... O-O {[%clk 0:04:34.6]} 9. Ng3 {[%clk 0:04:44.3]} 9... f5 {[%clk 0:04:08.6]}
10. exf6 {[%clk 0:04:28.9]} 10... Bxf6 {[%clk 0:04:02.4]} 11. c3 {[%clk
0:04:26.8]} 11... Nd7 {[%clk 0:03:53.7]} 12. Nxe4 {[%clk 0:04:24.7]} 12... Be7
{[%clk 0:03:47.4]} 13. Bxe6+ {[%clk 0:04:22.9]} 13... Kh8 {[%clk 0:03:35.7]} 14.
Qh5 {[%clk 0:04:20.9]} 14... Nf6 {[%clk 0:03:23.8]} 15. Nxf6 {[%clk 0:04:18.9]}
15... Bxf6 {[%clk 0:03:19.1]} 16. Bxc8 {[%clk 0:04:16.7]} 16... Qxc8 {[%clk
0:03:17]} 17. Bg5 {[%clk 0:04:14.3]} 17... Bxg5 {[%clk 0:03:13.8]} 18. Qxg5
{[%clk 0:04:13.1]} 18... h6 {[%clk 0:03:07.3]} 19. Qg3 {[%clk 0:04:10.2]} 19...
Qd7 {[%clk 0:02:54.5]} 20. Rae1 {[%clk 0:04:08.2]} 20... Rae8 {[%clk 0:02:54.4]}
21. f4 {[%clk 0:04:05.3]} 21... Rxe1 {[%clk 0:02:51]} 22. Rxe1 {[%clk
0:04:04.2]} 22... Re8 {[%clk 0:02:50.8]} 23. Rxe8+ {[%clk 0:04:00.5]} 23... Qxe8
{[%clk 0:02:50.7]} 24. f5 {[%clk 0:03:56.5]} 24... g5 {[%clk 0:02:46.1]} 25.
fxg6 {[%clk 0:03:54.4]} 25... h5 {[%clk 0:02:42.9]} 26. g7+ {[%clk 0:03:51.2]}
26... Kg8 {[%clk 0:02:40.8]} 27. h4 {[%clk 0:03:44.3]} 27... Qe2 {[%clk
0:02:36.8]} 28. Qb8+ {[%clk 0:03:35.9]} 28... Kxg7 {[%clk 0:02:34.3]} 29. Qxb7+
{[%clk 0:03:35.1]} 29... Kg6 {[%clk 0:02:32.6]} 30. Qxc6+ {[%clk 0:03:33.9]}
30... Kf5 {[%clk 0:02:26.2]} 31. Qf3+ {[%clk 0:03:32.1]} 31... Ke6 {[%clk
0:02:24.1]} 32. Qxe2+ {[%clk 0:03:30.7]} 32... Kd5 {[%clk 0:02:24]} 33. Qe5+
{[%clk 0:03:29.2]} 1-0

[Event "Live Chess"]
[Site "Chess.com"]
[Date "2024.06.02"]
[Round "-"]
[White "Dhaydon19"]
[Black "NeilDruggan73"]
[Result "1-0"]
[WhiteElo "2683"]
[BlackElo "1778"]
[TimeControl "300"]
[EndTime "19:18:20 PDT"]
[Termination "Dhaydon19 won on time"]

1. g3 {[%clk 0:04:57.9]} 1... Nf6 {[%clk 0:04:54.8]} 2. Bg2 {[%clk 0:04:57.5]}
2... g6 {[%clk 0:04:54.1]} 3. c4 {[%clk 0:04:56.8]} 3... Bg7 {[%clk 0:04:53.3]}
4. Nc3 {[%clk 0:04:56.5]} 4... c6 {[%clk 0:04:51.9]} 5. Nf3 {[%clk 0:04:56]}
5... O-O {[%clk 0:04:50.3]} 6. O-O {[%clk 0:04:54.1]} 6... d6 {[%clk 0:04:49.9]}
7. d4 {[%clk 0:04:52.1]} 7... Bg4 {[%clk 0:04:46.8]} 8. Qc2 {[%clk 0:04:50.5]}
8... Qc8 {[%clk 0:04:45.6]} 9. Rd1 {[%clk 0:04:49.5]} 9... Bh3 {[%clk
0:04:44.4]} 10. Bg5 {[%clk 0:04:47.7]} 10... Bxg2 {[%clk 0:04:43.1]} 11. Kxg2
{[%clk 0:04:47.4]} 11... h6 {[%clk 0:04:41.4]} 12. Bxf6 {[%clk 0:04:44.9]} 12...
exf6 {[%clk 0:04:39.1]} 13. e3 {[%clk 0:04:44.2]} 13... Nd7 {[%clk 0:04:38]} 14.
Ne4 {[%clk 0:04:42]} 14... Qc7 {[%clk 0:04:34.8]} 15. Rac1 {[%clk 0:04:39.3]}
15... Rae8 {[%clk 0:04:32.7]} 16. b4 {[%clk 0:04:34.3]} 16... b6 {[%clk
0:04:31.5]} 17. Nc3 {[%clk 0:04:30.5]} 17... f5 {[%clk 0:04:19.3]} 18. a4 {[%clk
0:04:21.3]} 18... Nf6 {[%clk 0:04:16.4]} 19. b5 {[%clk 0:04:17.8]} 19... c5
{[%clk 0:04:10.4]} 20. dxc5 {[%clk 0:04:11.2]} 20... dxc5 {[%clk 0:04:09.1]} 21.
Nd5 {[%clk 0:04:09.9]} 21... Nxd5 {[%clk 0:04:08]} 22. Rxd5 {[%clk 0:04:09.5]}
22... Rd8 {[%clk 0:03:52.1]} 23. Rcd1 {[%clk 0:03:58.6]} 23... Rxd5 {[%clk
0:03:49.4]} 24. Rxd5 {[%clk 0:03:57.1]} 24... Rd8 {[%clk 0:03:48.1]} 25. Qd3
{[%clk 0:03:56.7]} 25... Rxd5 {[%clk 0:03:46.5]} 26. Qxd5 {[%clk 0:03:55.3]}
26... Kh7 {[%clk 0:03:32.9]} 27. h4 {[%clk 0:03:52.4]} 27... Bf6 {[%clk
0:03:27.9]} 28. h5 {[%clk 0:03:50.4]} 28... Qe7 {[%clk 0:03:19.4]} 29. hxg6+
{[%clk 0:03:47.4]} 29... fxg6 {[%clk 0:03:18.1]} 30. Nd2 {[%clk 0:03:40.2]}
30... Bc3 {[%clk 0:03:11.3]} 31. Nf3 {[%clk 0:03:32.5]} 31... Kg7 {[%clk
0:02:44.1]} 32. Kf1 {[%clk 0:03:28.7]} 32... Kf6 {[%clk 0:02:38.4]} 33. Ke2
{[%clk 0:03:26.3]} 33... Qe4 {[%clk 0:02:35.2]} 34. Qd8+ {[%clk 0:03:14]} 34...
Qe7 {[%clk 0:02:33.3]} 35. Qh8+ {[%clk 0:03:11.2]} 35... Qg7 {[%clk 0:02:30]}
36. Qc8 {[%clk 0:03:05.1]} 36... Qe7 {[%clk 0:02:25.5]} 37. Nh4 {[%clk
0:03:02.1]} 37... Kg7 {[%clk 0:02:13.7]} 38. Qc6 {[%clk 0:02:57.1]} 38... Bf6
{[%clk 0:02:08.4]} 39. Ng2 {[%clk 0:02:56.1]} 39... g5 {[%clk 0:02:05.9]} 40.
Ne1 {[%clk 0:02:51.5]} 40... Qe5 {[%clk 0:02:04.3]} 41. Qd7+ {[%clk 0:02:47.7]}
41... Kg6 {[%clk 0:02:02.3]} 42. Qd3 {[%clk 0:02:43.7]} 42... h5 {[%clk
0:01:56.2]} 43. Ng2 {[%clk 0:02:37.2]} 43... h4 {[%clk 0:01:52.5]} 44. gxh4
{[%clk 0:02:35.5]} 44... gxh4 {[%clk 0:01:51.5]} 45. Nf4+ {[%clk 0:02:34.6]}
45... Kh6 {[%clk 0:01:24.4]} 46. Qd7 {[%clk 0:02:28.3]} 46... Kg5 {[%clk
0:00:59.6]} 47. Qf7 {[%clk 0:02:24.7]} 47... Qb2+ {[%clk 0:00:12.9]} 48. Kf3
{[%clk 0:02:22.8]} 1-0

[Event "Live Chess"]
[Site "Chess.com"]
[Date "2024.06.02"]
[Round "-"]
[White "RafaelRony"]
[Black "ShanthamGrarks"]
[Result "0-1"]
[WhiteElo "1073"]
[BlackElo "1876"]
[TimeControl "300"]
[EndTime "19:21:10 PDT"]
[Termination "ShanthamGrarks won on time"]

1. Nf3 {[%clk 0:04:55.4]} 1... Nc6 {[%clk 0:04:56.4]} 2. g3 {[%clk 0:04:40.7]}
2... g6 {[%clk 0:04:55.2]} 3. Bg2 {[%clk 0:04:38.4]} 3... Bg7 {[%clk 0:04:54.9]}
4. d4 {[%clk 0:04:34.4]} 4... Nf6 {[%clk 0:04:54.2]} 5. O-O {[%clk 0:04:32.2]}
5... b6 {[%clk 0:04:50.7]} 6. Ne5 {[%clk 0:04:25.1]} 6... Bb7 {[%clk 0:04:49.4]}
7. c4 {[%clk 0:04:09.8]} 7... O-O {[%clk 0:04:45.9]} 8. Nc3 {[%clk 0:03:58.5]}
8... Rb8 {[%clk 0:04:36.1]} 9. Nf3 {[%clk 0:03:35]} 9... e6 {[%clk 0:04:30.3]}
10. Qc2 {[%clk 0:03:20.8]} 10... d5 {[%clk 0:04:28.3]} 11. cxd5 {[%clk
0:03:15.1]} 11... exd5 {[%clk 0:04:27.1]} 12. Rd1 {[%clk 0:03:07.9]} 12... Re8
{[%clk 0:04:24.4]} 13. Bg5 {[%clk 0:03:03.9]} 13... h6 {[%clk 0:04:14.1]} 14.
Bd2 {[%clk 0:02:52.6]} 14... Ne4 {[%clk 0:04:03.9]} 15. Qb3 {[%clk 0:02:19.6]}
15... Nxd2 {[%clk 0:03:57.1]} 16. Rxd2 {[%clk 0:02:18.9]} 16... Na5 {[%clk
0:03:50.9]} 17. Qc2 {[%clk 0:02:12.9]} 17... Nc4 {[%clk 0:03:49.6]} 18. Rdd1
{[%clk 0:02:10.7]} 18... c6 {[%clk 0:03:41.2]} 19. b3 {[%clk 0:02:08]} 19... Nd6
{[%clk 0:03:39.7]} 20. a4 {[%clk 0:01:41.6]} 20... Rc8 {[%clk 0:03:35.5]} 21.
Rac1 {[%clk 0:01:37.8]} 21... c5 {[%clk 0:03:34.2]} 22. dxc5 {[%clk 0:01:35.3]}
22... Rxc5 {[%clk 0:03:31.8]} 23. Qd3 {[%clk 0:01:25.6]} 23... Bxc3 {[%clk
0:03:20.9]} 24. Rxc3 {[%clk 0:01:21.7]} 24... Rxc3 {[%clk 0:03:19.6]} 25. Qxc3
{[%clk 0:01:20.2]} 25... Rxe2 {[%clk 0:03:16.9]} 26. Nd4 {[%clk 0:00:58.5]}
26... Re7 {[%clk 0:03:03.1]} 27. Qc1 {[%clk 0:00:51.3]} 27... Kg7 {[%clk
0:02:51.4]} 28. Qc3 {[%clk 0:00:43.1]} 28... Kh7 {[%clk 0:02:43.9]} 29. Qb2
{[%clk 0:00:36.5]} 29... Ne4 {[%clk 0:02:38.6]} 30. Nc2 {[%clk 0:00:23.1]} 30...
Qd6 {[%clk 0:02:34.3]} 31. Bxe4 {[%clk 0:00:18.3]} 31... Rxe4 {[%clk 0:02:31.9]}
32. Qb1 {[%clk 0:00:16.2]} 32... Qf6 {[%clk 0:02:14.8]} 33. Ne3 {[%clk
0:00:15.5]} 33... d4 {[%clk 0:02:08.2]} 34. Nc4 {[%clk 0:00:10]} 34... Qf3
{[%clk 0:02:01.5]} 35. Qd3 {[%clk 0:00:05.8]} 35... Re1+ {[%clk 0:01:53.3]} 0-1